bitfinex-derivatives/quotes_BTCF0:USTF0_20241117
["timestamp","ask_amount","ask_price","bid_price","bid_amount"]
[1731836257543,0.0548,91236.0,91235.0,0.005308]
[1731836257544,0.46890987,91236.0,91235.0,0.005308]
[1731836257736,0.57145993,91236.0,91235.0,0.005308]
[1731836258043,0.57145993,91236.0,91235.0,0.00544584]
[1731836258845,0.46890987,91236.0,91235.0,0.00201784]
[1731836259133,0.57123441,91236.0,91235.0,0.00544582]
[1731836259333,0.57123441,91236.0,91235.0,0.00544583]
[1731836259540,0.46890987,91236.0,91235.0,0.00544583]
[1731836259948,0.46890987,91236.0,91235.0,0.050185]
[1731836260447,0.41410987,91236.0,91235.0,0.050185]
[1731836260841,0.3608,91236.0,91235.0,0.05018491]
[1731836261040,0.3608,91236.0,91235.0,1.55018491]
[1731836261442,0.415594,91246.0,91235.0,1.55018491]
[1731836261443,0.41615401,91246.0,91235.0,1.55018491]
[1731836261636,0.054794,91246.0,91245.0,0.054794]
[1731836261838,0.054794,91246.0,91245.0,0.0582219]
[1731836262446,0.054794,91246.0,91245.0,0.09955513]
[1731836262651,0.054794,91246.0,91245.0,0.10298261]
[1731836263043,0.054794,91246.0,91245.0,0.05822148]
[1731836264057,0.054794,91246.0,91245.0,0.054794]
[1731836264352,0.054794,91246.0,91245.0,0.05822155]
[1731836265046,0.054794,91246.0,91245.0,0.054794]
[1731836265238,0.054794,91246.0,91244.0,0.04343016]
[1731836265442,0.054794,91246.0,91241.0,0.16922429]
[1731836265747,0.054796,91243.0,91242.0,0.054796]
[1731836266150,0.054796,91243.0,91241.0,0.16922429]
[1731836266340,0.054797,91240.0,91239.0,0.04437621]
[1731836266543,0.0548,91236.0,91235.0,1.50145784]
[1731836266855,0.0548,91236.0,91235.0,1.50013784]
[1731836268557,0.21845677,91236.0,91235.0,1.50013784]
[1731836268741,0.0548,91236.0,91235.0,1.50013784]
[1731836270148,0.0548,91236.0,91235.0,1.54399136]
[1731836271445,0.0548,91236.0,91235.0,1.59879136]
[1731836272246,0.0548,91236.0,91235.0,1.60221916]
[1731836272956,0.0548,91236.0,91235.0,1.59879136]
[1731836273151,0.0548,91236.0,91235.0,1.60221916]
[1731836275755,0.0548,91236.0,91235.0,1.54741916]
[1731836279048,0.0548,91236.0,91235.0,1.60221916]
[1731836279444,0.0548,91236.0,91235.0,1.55290371]
[1731836279750,0.0548,91236.0,91235.0,0.00356564]
[1731836279946,0.0548,91236.0,91235.0,0.00013784]
[1731836279947,0.4156,91236.0,91235.0,0.00013784]
[1731836280354,0.054802,91232.0,91219.0,0.086]
[1731836280564,0.21845976,91232.0,91219.0,0.086]
[1731836280855,0.054802,91232.0,91231.0,0.00507245]
[1731836281062,0.054802,91232.0,91231.0,0.0016441]
[1731836281560,0.21845976,91232.0,91231.0,0.00507243]
[1731836281862,0.21845976,91232.0,91231.0,0.0016441]
[1731836282258,0.054802,91232.0,91231.0,0.00507237]
[1731836282666,0.054802,91232.0,91231.0,0.00507238]
[1731836285271,0.46892437,91232.0,91231.0,0.00507238]
[1731836285465,0.46892437,91232.0,91231.0,0.0016441]
[1731836285648,0.66599241,91232.0,91231.0,0.0016441]
[1731836285848,0.054804,91229.0,91228.0,0.00012635]
[1731836286054,0.25187263,91229.0,91228.0,0.00012635]
[1731836286269,0.305195,91229.0,91216.0,0.04499595]
[1731836286455,0.054815,91210.0,91209.0,0.086]
[1731836286654,0.054815,91210.0,91209.0,0.09491499]
[1731836287350,0.054815,91210.0,91209.0,0.08613793]
[1731836288658,0.054815,91210.0,91209.0,0.12954775]
[1731836290060,0.054815,91210.0,91209.0,1.62954775]
[1731836290857,0.16417993,91212.0,91209.0,1.54354775]
[1731836291063,0.16417993,91214.0,91212.0,0.054814]
[1731836291263,0.3608,91217.0,91215.0,0.054812]
[1731836291264,0.16417993,91217.0,91215.0,0.054812]
[1731836291456,0.054811,91217.0,91215.0,0.054812]
[1731836292265,0.054814,91212.0,91211.0,0.08318429]
[1731836292467,0.054814,91212.0,91211.0,0.08661291]
[1731836292660,0.16417993,91214.0,91209.0,1.63086775]
[1731836292865,0.054815,91210.0,91209.0,1.63086775]
[1731836293060,0.054815,91210.0,91209.0,1.62954775]
[1731836294378,0.054815,91210.0,91209.0,0.04354775]
[1731836294676,0.10814634,91210.0,91209.0,0.05246271]
[1731836294966,0.10814634,91210.0,91209.0,0.04697658]
[1731836295679,0.10814634,91210.0,91209.0,0.00356676]
[1731836295874,0.25183092,91210.0,91209.0,0.00356676]
[1731836296070,0.10814634,91210.0,91209.0,0.00356676]
[1731836296370,0.10826446,91210.0,91209.0,0.00356676]
[1731836297070,0.30499218,91210.0,91209.0,0.00356676]
[1731836297263,0.10942944,91210.0,91209.0,0.00356676]
[1731836298076,0.0560981,91210.0,91209.0,0.00356676]
[1731836300764,0.0560981,91210.0,91209.0,0.00356709]
[1731836301375,0.0560981,91210.0,91209.0,0.00013793]
[1731836301569,0.05643891,91210.0,91209.0,0.00013793]
[1731836301880,0.05643891,91210.0,91209.0,0.003567]
[1731836302468,0.05643891,91210.0,91209.0,0.00013793]
[1731836303878,0.05643891,91210.0,91209.0,0.00356698]
[1731836304270,0.05643891,91210.0,91209.0,0.08956698]
[1731836307177,0.05643891,91210.0,91209.0,0.08613793]
[1731836307372,0.05643891,91210.0,91209.0,0.00013793]
[1731836307683,0.05643891,91210.0,91209.0,0.00699555]
[1731836308477,0.1097717,91210.0,91209.0,0.00356674]
[1731836309179,0.30649942,91210.0,91209.0,0.00013793]
[1731836309479,0.1097717,91210.0,91209.0,0.00356711]
[1731836309781,0.21206723,91210.0,91209.0,0.00356711]
[1731836311192,0.21206723,91210.0,91209.0,0.00356717]
[1731836311686,0.21206723,91210.0,91209.0,0.00013793]
[1731836312081,0.21206723,91210.0,91209.0,0.00356704]
[1731836312883,0.10977456,91210.0,91209.0,0.00356704]
[1731836313217,0.05643891,91210.0,91209.0,0.00356704]
[1731836314286,0.05643891,91210.0,91209.0,0.00905374]
[1731836314481,0.05643891,91210.0,91209.0,0.00013793]
[1731836314776,0.05643891,91210.0,91209.0,0.00905381]
[1731836315080,0.05643891,91210.0,91209.0,0.00356711]
[1731836315285,0.05643891,91210.0,91209.0,0.0090538]
[1731836317577,0.05643891,91210.0,91209.0,0.00356711]
[1731836317885,0.054821,91201.0,91200.0,0.19548706]
[1731836318092,0.3608,91201.0,91198.0,0.19548706]
[1731836318280,0.08318429,91197.0,91192.0,0.19548706]
[1731836318479,0.054826,91192.0,91191.0,0.19548706]
[1731836318683,0.05633179,91192.0,91190.0,0.00164472]
[1731836318985,0.4255,91191.0,91190.0,0.00175333]
[1731836319585,0.47885111,91191.0,91190.0,0.00175333]
[1731836319789,0.4803569,91191.0,91190.0,0.00175333]
[1731836320183,0.59118012,91191.0,91190.0,0.00175333]
[1731836320987,0.42700579,91191.0,91190.0,0.00175333]
[1731836321186,0.58133729,91191.0,91190.0,0.00175333]
[1731836322388,0.58121245,91191.0,91190.0,0.00175333]
[1731836322795,0.63603945,91191.0,91190.0,0.00175333]
[1731836324188,0.53518485,91191.0,91190.0,0.00175333]
[1731836328183,0.48183279,91191.0,91190.0,0.00175333]
[1731836328585,0.48183279,91191.0,91190.0,0.00010861]
[1731836328586,0.81083279,91191.0,91190.0,0.00010861]
[1731836328798,0.81083279,91191.0,91172.0,0.0051]
[1731836328799,0.054838,91173.0,91172.0,0.0051]
[1731836329004,0.054838,91173.0,91172.0,0.0054889]
[1731836329005,0.415638,91173.0,91172.0,0.0054889]
[1731836329301,0.3608,91173.0,91158.0,1.5]
[1731836329500,0.415646,91159.0,91158.0,1.5]
[1731836329692,0.41715179,91159.0,91158.0,1.50694287]
[1731836329998,0.41715179,91159.0,91158.0,0.01586308]
[1731836330698,0.41715179,91159.0,91158.0,0.00900146]
[1731836330883,0.41715179,91159.0,91158.0,0.00900162]
[1731836333710,0.41715179,91159.0,91158.0,0.00351222]
[1731836334001,0.41715179,91159.0,91158.0,8.135e-05]
[1731836334501,0.054849,91154.0,91153.0,0.00253539]
[1731836334705,0.05635479,91154.0,91153.0,0.00596673]
[1731836334891,0.05635479,91154.0,91153.0,0.00253539]
[1731836335094,0.05635479,91154.0,91153.0,0.00089]
[1731836335295,0.05486,91136.0,91135.0,0.0051]
[1731836335595,0.36090521,91136.0,91135.0,0.00353427]
[1731836335795,0.417271,91136.0,91135.0,0.00353427]
[1731836336392,0.50045529,91136.0,91135.0,0.00353427]
[1731836336594,0.50045529,91136.0,91135.0,0.00010248]
[1731836336801,0.50045529,91136.0,91118.0,0.0303]
[1731836336802,0.05487,91120.0,91118.0,0.0303]
[1731836337005,0.41567,91120.0,91119.0,0.00343234]
[1731836337693,0.41567,91120.0,91119.0,0.00356654]
[1731836337897,0.41717579,91120.0,91119.0,0.00356654]
[1731836338500,0.36230579,91120.0,91119.0,0.00356654]
[1731836340101,0.36230579,91120.0,91119.0,1.50356654]
[1731836340102,0.00150579,91120.0,91119.0,1.50356654]
[1731836340309,0.00150579,91120.0,91119.0,1.83280654]
[1731836340504,0.00150579,91120.0,91119.0,1.83829779]
[1731836341592,0.00150579,91120.0,91119.0,1.83280654]
[1731836341798,0.00150579,91120.0,91119.0,1.8417297]
[1731836341994,0.00150579,91120.0,91119.0,1.83829736]
[1731836342592,0.00150579,91120.0,91119.0,2.03396335]
[1731836342793,0.36090521,91136.0,91119.0,2.33396335]
[1731836342995,0.36090521,91136.0,91134.0,0.08318429]
[1731836343196,0.36090521,91136.0,91135.0,0.06773198]
[1731836343791,0.36090521,91136.0,91135.0,1.56773198]
[1731836343997,0.00164632,91155.0,91148.0,0.054852]
[1731836343998,0.054851,91151.0,91148.0,0.054852]
[1731836344411,0.054851,91151.0,91149.0,0.00343117]
[1731836344714,0.00164632,91155.0,91152.0,0.05485]
[1731836345006,0.05649432,91155.0,91153.0,0.08318429]
[1731836345305,0.05649432,91155.0,91154.0,0.00343105]
[1731836347801,0.05649432,91155.0,91154.0,0.00892058]
[1731836348003,0.05649432,91155.0,91154.0,0.00892042]
[1731836349495,0.05800116,91155.0,91154.0,0.00892042]
[1731836350195,0.05800116,91155.0,91154.0,0.07092042]
[1731836351208,0.05800116,91155.0,91154.0,0.07092043]
[1731836353902,0.05800116,91155.0,91154.0,0.04062043]
[1731836354899,0.05800116,91155.0,91154.0,0.03513093]
[1731836356002,0.05800116,91155.0,91154.0,0.00343093]
[1731836356810,0.00315316,91155.0,91152.0,0.05485]
[1731836357009,0.054849,91154.0,91152.0,0.05485]
[1731836357407,0.00150684,91153.0,91152.0,0.05485]
[1731836358209,0.00150684,91153.0,91152.0,0.05828105]
[1731836359014,0.00150684,91153.0,91152.0,0.05485]
[1731836359207,0.00150684,91153.0,91152.0,0.0582809]
[1731836359404,0.00150684,91153.0,91152.0,0.05485]
[1731836360508,0.054851,91150.0,91148.0,0.00136]
[1731836360805,0.36230684,91153.0,91129.0,0.08318429]
[1731836360806,0.054856,91142.0,91139.0,0.054858]
[1731836361108,0.054857,91140.0,91139.0,0.054858]
[1731836361415,0.0655,91149.0,91136.0,0.08592]
[1731836361416,0.3608,91145.0,91136.0,0.08592]
[1731836361712,0.054859,91137.0,91136.0,0.08592]
[1731836361912,0.00150684,91140.0,91134.0,0.15532]
[1731836361913,0.05486,91135.0,91134.0,0.15532]
[1731836362411,0.05486,91135.0,91134.0,0.0694]
[1731836362617,0.05636684,91135.0,91134.0,0.15532]
[1731836363016,0.05636684,91135.0,91134.0,0.16424206]
[1731836363314,0.05636684,91135.0,91134.0,0.07832206]
[1731836363520,0.05636684,91135.0,91134.0,0.00892206]
[1731836363821,0.05636684,91135.0,91134.0,0.00343156]
[1731836364317,0.054869,91122.0,91119.0,0.0001342]
[1731836364521,0.054869,91122.0,91120.0,0.00892346]
[1731836364813,0.054869,91122.0,91119.0,0.04357596]
[1731836364814,0.00150684,91121.0,91119.0,0.0001342]
[1731836365005,0.00150684,91121.0,91119.0,0.0550042]
[1731836365209,0.00150684,91121.0,91120.0,0.00343216]
[1731836365418,0.00150684,91121.0,91119.0,0.04843636]
[1731836365607,0.13110078,91129.0,91119.0,0.04386831]
[1731836365807,0.13110078,91129.0,91117.0,0.08592]
[1731836365808,0.13110078,91129.0,91127.0,0.054865]
[1731836366317,0.13110078,91132.0,91128.0,0.08604805]
[1731836366513,0.13110078,91132.0,91131.0,0.054863]
[1731836366714,0.054862,91133.0,91131.0,0.054863]
[1731836366920,0.13119193,91132.0,91131.0,0.054863]
[1731836367115,0.05876,91136.0,91131.0,0.054863]
[1731836367720,0.05876,91136.0,91132.0,0.054862]
[1731836367919,0.05876,91136.0,91133.0,0.00549061]
[1731836368111,0.05876,91136.0,91132.0,0.054862]
[1731836368421,0.054861,91135.0,91132.0,0.054862]
[1731836368715,0.054861,91135.0,91133.0,0.00549067]
[1731836368916,0.054861,91135.0,91132.0,0.054862]
[1731836369223,0.054861,91135.0,91133.0,1.50549067]
[1731836369417,0.054861,91135.0,91133.0,1.5]
[1731836370112,0.054861,91135.0,91134.0,0.00549067]
[1731836370916,0.0039,91136.0,91135.0,0.05486]
[1731836371114,0.00450001,91137.0,91135.0,0.38955067]
[1731836371430,0.0039,91137.0,91136.0,0.00549067]
[1731836371725,0.0039,91137.0,91136.0,1.94437859]
[1731836372620,0.0039,91137.0,91136.0,1.93888792]
[1731836372822,0.0039,91137.0,91136.0,1.94437754]
[1731836373429,0.0039,91137.0,91136.0,2.32597236]
[1731836373720,0.0039,91137.0,91136.0,2.33146181]
[1731836374522,0.0039,91137.0,91136.0,2.32597236]
[1731836374727,0.0039,91137.0,91136.0,2.33146177]
[1731836375121,0.0351,91152.0,91136.0,2.33146177]
[1731836375420,0.0351,91152.0,91149.0,0.054852]
[1731836375731,0.0351,91152.0,91150.0,0.00548941]
[1731836375917,0.0351,91152.0,91151.0,0.0054894]
[1731836377020,0.0351,91152.0,91150.0,0.054851]
[1731836378025,0.0351,91152.0,91151.0,0.00343084]
[1731836379332,0.0351,91152.0,91150.0,0.054851]
[1731836379533,0.0351,91152.0,91151.0,0.00343081]
[1731836379834,0.0351,91152.0,91151.0,0.19660272]
[1731836380227,0.08846102,91152.0,91150.0,0.054851]
[1731836380433,0.05336102,91151.0,91150.0,0.054851]
[1731836380754,0.05336102,91151.0,91150.0,0.0582818]
[1731836381033,0.05336102,91151.0,91150.0,0.09893648]
[1731836381427,0.05336102,91151.0,91150.0,0.10236728]
[1731836381827,0.0039,91152.0,91151.0,0.054851]
[1731836382030,0.0039,91152.0,91151.0,0.06377079]
[1731836382434,0.0039,91152.0,91151.0,0.58029475]
[1731836382625,0.0039,91152.0,91151.0,0.61748333]
[1731836382826,0.13518827,91152.0,91151.0,0.60856395]
[1731836383026,0.13518827,91152.0,91151.0,2.11748312]
[1731836383027,0.0039,91152.0,91151.0,2.11748312]
[1731836383227,0.0039,91152.0,91151.0,2.20881184]
[1731836383634,0.0039,91152.0,91151.0,2.12562755]
[1731836383831,0.0039,91152.0,91151.0,2.20881184]
[1731836384033,0.16413299,91162.0,91151.0,1.87969184]
[1731836384237,0.16413299,91166.0,91161.0,0.3608]
[1731836384540,0.39366001,91174.0,91165.0,0.08318429]
[1731836384740,0.39366001,91174.0,91166.0,0.05827245]
[1731836384741,0.1640324,91168.0,91166.0,0.05827245]
[1731836384939,0.1640324,91173.0,91172.0,0.054838]
[1731836385126,0.1640324,91175.0,91174.0,0.054837]
[1731836385325,0.1640324,91178.0,91177.0,0.054835]
[1731836385633,0.16394659,91180.0,91178.0,0.054835]
[1731836385827,0.16394659,91181.0,91180.0,0.054833]
[1731836386031,0.05334473,91181.0,91180.0,0.00343045]
[1731836386229,0.00011249,91184.0,91182.0,0.054832]
[1731836386430,0.00011249,91184.0,91183.0,0.00343045]
[1731836386626,0.05345744,91184.0,91183.0,0.00343045]
[1731836387229,0.05345744,91184.0,91182.0,0.054832]
[1731836387427,0.16391531,91184.0,91182.0,0.054832]
[1731836387631,0.16380282,91183.0,91182.0,0.054832]
[1731836387834,0.16391531,91184.0,91182.0,0.05826178]
[1731836388142,0.16391531,91184.0,91183.0,0.00342977]
[1731836388448,0.05494349,91184.0,91182.0,0.09956243]
[1731836389137,0.05494349,91184.0,91183.0,0.00342977]
[1731836389544,0.05494349,91184.0,91182.0,0.09956243]
[1731836389836,0.05494349,91184.0,91183.0,0.00342974]
[1731836390041,0.05494349,91184.0,91182.0,0.09956243]
[1731836390435,0.05494349,91184.0,91183.0,0.00342973]
[1731836392131,0.05494349,91184.0,91182.0,0.09956243]
[1731836395348,0.16380282,91183.0,91182.0,0.09956243]
[1731836396341,0.05494349,91184.0,91182.0,0.09956243]
[1731836396544,0.05334523,91183.0,91182.0,0.09956243]
[1731836396744,0.05494349,91184.0,91182.0,0.09956243]
[1731836396937,0.054832,91183.0,91182.0,0.09956243]
[1731836397346,0.10817676,91183.0,91182.0,0.09956243]
[1731836397548,0.21851172,91183.0,91182.0,0.18532243]
[1731836398138,0.21851172,91183.0,91182.0,0.06667977]
[1731836398340,0.21851172,91183.0,91182.0,0.08576]
[1731836398341,0.10817709,91183.0,91182.0,0.08576]
[1731836400541,0.10817709,91183.0,91182.0,0.12899271]
[1731836401746,0.25148866,91183.0,91175.0,0.00132]
[1731836402051,0.25148866,91183.0,91174.0,0.00010246]
[1731836402052,0.415636,91176.0,91174.0,0.00010246]
[1731836402355,0.415636,91176.0,91167.0,0.08576]
[1731836402356,0.054841,91168.0,91167.0,0.08576]
[1731836402541,0.21314872,91168.0,91167.0,0.08576]
[1731836403139,0.10818609,91168.0,91167.0,0.08587665]
[1731836403351,0.0305,91174.0,91167.0,0.08587665]
[1731836403550,0.054838,91172.0,91170.0,0.08318429]
[1731836403750,0.054834,91179.0,91170.0,0.08318429]
[1731836403944,0.031,91183.0,91181.0,0.054832]
[1731836404146,0.031,91183.0,91180.0,0.08318429]
[1731836404147,0.00011249,91184.0,91183.0,0.054832]
[1731836404351,0.16393973,91209.0,91183.0,0.25486447]
[1731836404656,0.3608,91217.0,91183.0,0.25486447]
[1731836404657,0.0328,91210.0,91204.0,0.08318429]
[1731836404954,0.0328,91210.0,91205.0,1.5]
[1731836405363,0.054817,91207.0,91206.0,0.054818]
[1731836405545,0.054817,91207.0,91205.0,1.5]
[1731836406258,0.054817,91207.0,91205.0,1.50132]
[1731836406451,0.054817,91207.0,91205.0,0.00132]
[1731836406645,0.054819,91205.0,91203.0,0.08572]
[1731836406854,0.054819,91205.0,91203.0,0.18387733]
[1731836410358,0.05333013,91204.0,91203.0,0.18387733]
[1731836410956,0.05333013,91204.0,91203.0,0.18387833]
[1731836411456,0.19672997,91208.0,91206.0,0.054818]
[1731836411759,0.25005986,91208.0,91206.0,0.054818]
[1731836412057,0.05332989,91207.0,91206.0,0.054818]
[1731836412562,0.25005986,91207.0,91206.0,0.054818]
[1731836412952,0.05332989,91207.0,91206.0,0.054818]
[1731836414551,0.05332984,91207.0,91206.0,0.054818]
[1731836415166,0.16384248,91208.0,91206.0,0.05824659]
[1731836415357,0.16384248,91209.0,91208.0,0.054817]
[1731836415665,0.16384248,91209.0,91208.0,0.06373134]
[1731836415857,0.16384248,91212.0,91210.0,0.054815]
[1731836416052,0.05332409,91211.0,91205.0,0.3608]
[1731836416357,0.16376833,91211.0,91210.0,0.13799929]
[1731836416557,0.16376833,91212.0,91210.0,0.14691331]
[1731836416762,0.16376833,91212.0,91211.0,0.00891402]
[1731836417157,0.16376833,91213.0,91211.0,0.00891402]
[1731836417358,0.16376833,91213.0,91212.0,0.06372802]
[1731836418358,0.00010126,91215.0,91212.0,0.00891402]
[1731836418558,0.00010126,91215.0,91214.0,0.054813]
[1731836418861,0.00010126,91215.0,91214.0,0.14944702]
[1731836421365,0.00010126,91215.0,91214.0,0.14944713]
[1731836421548,0.00010126,91215.0,91214.0,0.14944719]
[1731836421964,0.05491326,91215.0,91214.0,0.14944719]
[1731836422261,0.05491326,91215.0,91214.0,0.13300508]
[1731836422653,0.05491326,91215.0,91214.0,0.00342853]
[1731836422854,0.05482,91203.0,91202.0,0.02194346]
[1731836423053,0.05482,91203.0,91202.0,0.10766346]
[1731836423254,0.05482,91203.0,91202.0,0.11657882]
[1731836423566,0.05482,91203.0,91202.0,0.12000784]
[1731836424067,0.05482,91203.0,91202.0,0.1234368]
[1731836425953,0.05482,91203.0,91202.0,0.0377168]
[1731836426155,0.05482,91203.0,91202.0,0.1234368]
[1731836426353,0.05482,91203.0,91202.0,0.01234432]
[1731836429572,0.3608,91206.0,91202.0,0.01234432]
[1731836429758,0.3608,91206.0,91205.0,0.13800229]
[1731836430173,0.3608,91206.0,91205.0,1.63800229]
[1731836430373,0.00010126,91215.0,91205.0,1.63800229]
[1731836430374,0.00010126,91215.0,91205.0,1.58661321]
[1731836430669,0.00010126,91215.0,91214.0,0.054813]
[1731836430967,0.00010126,91215.0,91213.0,0.08318429]
[1731836431176,0.054813,91214.0,91213.0,0.08318429]
[1731836431369,0.054813,91214.0,91206.0,0.16882429]
[1731836431578,0.00010126,91215.0,91206.0,0.16882429]
[1731836431579,0.054814,91213.0,91211.0,0.054815]
[1731836432572,0.054814,91213.0,91212.0,0.00342858]
[1731836433570,0.1081425,91213.0,91212.0,0.00342858]
[1731836433871,0.1081425,91213.0,91212.0,0.00342871]
[1731836436673,0.1081425,91213.0,91212.0,0.00891452]
[1731836436883,0.1081425,91213.0,91212.0,0.00891444]
[1731836437370,0.1081425,91213.0,91212.0,0.00342863]
[1731836437571,0.1081425,91213.0,91212.0,0.00891444]
[1731836439264,0.0533285,91213.0,91212.0,0.00891444]
[1731836439469,0.00010126,91215.0,91214.0,0.054813]
[1731836439672,0.00010126,91215.0,91214.0,0.06372744]
[1731836440374,0.16429294,91215.0,91214.0,0.17348748]
[1731836440591,0.00010126,91215.0,91214.0,0.17348748]
[1731836440771,0.00010126,91215.0,91214.0,0.17348631]
[1731836440967,0.00010126,91215.0,91214.0,1.67348631]
[1731836441571,0.00010126,91215.0,91214.0,1.6803427]
[1731836441976,0.00010126,91215.0,91214.0,1.68034271]
[1731836442771,0.00010126,91215.0,91214.0,2.00922271]
[1731836443171,0.00010126,91215.0,91214.0,1.68034271]
[1731836443371,0.00010126,91215.0,91214.0,2.00922271]
[1731836444190,0.00010126,91215.0,91214.0,1.66457304]
[1731836444368,0.00010126,91215.0,91214.0,2.00236605]
[1731836444565,0.00010126,91215.0,91214.0,1.68290374]
[1731836444780,0.00010126,91215.0,91214.0,1.57071053]
[1731836445080,0.00010126,91215.0,91214.0,1.65635053]
[1731836446978,0.00010126,91215.0,91214.0,1.76598222]
[1731836447574,0.00010126,91215.0,91214.0,1.76854404]
[1731836447880,0.00010126,91215.0,91214.0,1.75021304]
[1731836448178,0.00010126,91215.0,91214.0,1.65635076]
[1731836448677,0.00010126,91215.0,91214.0,1.64949449]
[1731836449982,0.00010126,91215.0,91214.0,0.14949449]
[1731836451182,0.00010126,91215.0,91214.0,0.14058135]
[1731836451379,0.00010126,91215.0,91214.0,0.14400967]
[1731836451687,0.00010126,91215.0,91214.0,0.14949498]
[1731836452583,0.00010126,91215.0,91214.0,0.14400967]
[1731836453687,0.00010126,91215.0,91214.0,1.64400967]
[1731836454678,0.00010126,91215.0,91214.0,1.64949483]
[1731836455281,0.00010126,91215.0,91214.0,1.64949488]
[1731836455792,0.00010126,91215.0,91214.0,1.75912657]
[1731836457101,0.22957908,91235.0,91214.0,1.75912657]
[1731836457102,0.22957908,91261.0,91215.0,0.32888]
[1731836457394,0.3608,91270.0,91215.0,0.32888]
[1731836457395,0.26133603,91262.0,91259.0,0.054786]
[1731836457576,0.05329989,91261.0,91260.0,0.08556]
[1731836457776,0.05329821,91261.0,91260.0,0.08556]
[1731836457976,0.05329809,91261.0,91259.0,0.054786]
[1731836458183,0.0317,91262.0,91260.0,0.08556]
[1731836458881,0.0317,91262.0,91259.0,0.054786]
[1731836459081,0.0317,91262.0,91260.0,0.08556]
[1731836459674,0.0317,91262.0,91261.0,0.00342677]
[1731836459989,0.0317,91262.0,91261.0,0.05821177]
[1731836460180,0.0317,91262.0,91261.0,0.14139606]
[1731836461692,0.0317,91262.0,91261.0,0.22695606]
[1731836463595,0.0317,91262.0,91261.0,0.22352929]
[1731836463795,0.0317,91262.0,91261.0,0.22695595]
[1731836465889,8.744e-05,91268.0,91267.0,0.054781]
[1731836466089,8.744e-05,91268.0,91267.0,0.05820766]
[1731836466288,8.744e-05,91268.0,91267.0,1.55820766]
[1731836466479,8.744e-05,91268.0,91267.0,1.66778289]
[1731836467085,8.744e-05,91268.0,91267.0,1.66778245]
[1731836467585,8.744e-05,91268.0,91267.0,0.05820722]
[1731836467787,8.744e-05,91268.0,91267.0,0.1377999]
[1731836469588,8.744e-05,91268.0,91267.0,0.2233199]
[1731836470784,8.744e-05,91268.0,91267.0,0.1377999]
[1731836471181,0.140284,91296.0,91267.0,0.2233199]
[1731836471394,0.054776,91275.0,91274.0,0.3608]
[1731836472286,0.05490177,91275.0,91274.0,0.3608]
[1731836475494,0.05490177,91275.0,91268.0,0.08552]
[1731836475495,0.00012577,91275.0,91268.0,0.08552]
[1731836475695,0.05478,91269.0,91268.0,0.08552]
[1731836478797,0.19594664,91317.0,91293.0,0.054765]
[1731836479006,0.0307,91308.0,91293.0,0.501085]
[1731836479300,0.054761,91301.0,91293.0,2.001085]
[1731836479496,0.054761,91301.0,91293.0,2.08411296]
[1731836480302,0.054761,91301.0,91293.0,0.58411296]
[1731836480597,0.00010564,91307.0,91293.0,0.501085]
[1731836481798,0.054765,91295.0,91293.0,0.501085]
[1731836481994,0.03274369,91294.0,91293.0,0.501085]
[1731836482199,0.03274369,91294.0,91293.0,0.415565]
[1731836482406,0.03274369,91294.0,91293.0,0.44632]
[1731836483194,0.03274369,91294.0,91293.0,0.3608]
[1731836483904,0.06544369,91294.0,91293.0,0.3608]
[1731836485995,0.11872878,91294.0,91293.0,0.3608]
[1731836486304,0.25522599,91294.0,91293.0,0.3608]
[1731836486894,0.2535823,91294.0,91293.0,0.3608]
[1731836488000,0.62281897,91294.0,91275.0,0.3608]
[1731836488201,0.054776,91276.0,91275.0,0.3608]
[1731836489199,0.31588072,91276.0,91275.0,0.3608]
[1731836489399,0.45116028,91276.0,91275.0,0.3608]
[1731836489708,0.32093515,91276.0,91275.0,0.3608]
[1731836490005,0.22165556,91276.0,91275.0,0.3608]
[1731836490317,0.054777,91273.0,91272.0,0.00164341]
[1731836490608,0.054777,91273.0,91256.0,0.00124]
[1731836490609,0.054784,91262.0,91256.0,0.00124]
[1731836490919,0.28438011,91262.0,91256.0,0.00124]
[1731836491202,0.61767643,91262.0,91256.0,0.00124]
[1731836491811,0.72978952,91262.0,91256.0,0.00124]
[1731836491997,0.77403309,91262.0,91256.0,0.00124]
[1731836492199,0.66192,91262.0,91256.0,0.00124]
[1731836492704,0.42774757,91262.0,91256.0,0.00124]
[1731836493102,0.09902757,91262.0,91256.0,0.00124]
[1731836493328,0.42774757,91262.0,91256.0,0.00124]
[1731836495124,0.054787,91257.0,91256.0,0.00124]
[1731836495299,0.054787,91257.0,91229.0,1.5051]
[1731836495300,0.054803,91231.0,91229.0,1.5051]
[1731836495500,0.054803,91231.0,91230.0,0.00342781]
[1731836496203,0.05493289,91231.0,91230.0,7.85e-05]
[1731836502300,0.00012989,91231.0,91230.0,7.85e-05]
[1731836503318,0.0309,91254.0,91230.0,7.85e-05]
[1731836503319,0.08302796,91253.0,91239.0,0.054797]
[1731836503507,0.05479,91252.0,91251.0,0.3608]
[1731836503823,0.04373203,91259.0,91251.0,0.3608]
[1731836503824,0.054786,91259.0,91254.0,0.054789]
[1731836504113,0.054786,91259.0,91254.0,0.415589]
[1731836504316,0.00014023,91260.0,91254.0,1.915589]
[1731836504317,0.054787,91257.0,91254.0,1.915589]
[1731836504512,0.054788,91256.0,91254.0,1.915589]
[1731836505014,0.054788,91256.0,91254.0,0.415589]
[1731836505607,0.00014023,91260.0,91254.0,0.415589]
[1731836506009,0.00014023,91260.0,91259.0,0.054786]
[1731836506208,0.05478,91269.0,91268.0,0.05478]
[1731836506413,0.05478,91269.0,91268.0,0.41558]
[1731836506815,0.054777,91275.0,91271.0,0.054779]
[1731836507018,0.054777,91274.0,91269.0,0.3608]
[1731836507225,0.054777,91274.0,91273.0,0.054777]
[1731836507921,9.655e-05,91275.0,91273.0,0.054777]
[1731836509621,9.655e-05,91275.0,91274.0,0.033]
[1731836510307,9.655e-05,91275.0,91274.0,1.533]
[1731836511723,9.655e-05,91275.0,91274.0,1.64598554]
[1731836511925,0.0016438,91282.0,91281.0,0.054773]
[1731836512112,0.0016438,91282.0,91281.0,0.501053]
[1731836514329,0.0016438,91282.0,91281.0,0.54467414]
[1731836516211,0.054768,91290.0,91289.0,0.054768]
[1731836516431,0.054768,91290.0,91289.0,0.415568]
[1731836516618,0.00011842,91294.0,91289.0,0.415568]
[1731836516819,0.05488342,91294.0,91289.0,0.415568]
[1731836517019,0.05488342,91294.0,91290.0,0.08548]
[1731836517324,0.00011842,91294.0,91290.0,0.08548]
[1731836518124,0.054767,91292.0,91290.0,0.08548]
[1731836518828,0.054767,91292.0,91290.0,0.140247]